bitfinex-derivatives/quotes_BTCF0:USTF0_20250117
["timestamp","ask_amount","ask_price","bid_price","bid_amount"]
[1737148905326,0.04908485,104880.0,104870.0,0.047656]
[1737148905526,0.00143085,104880.0,104870.0,0.58033559]
[1737148908032,0.00143085,104880.0,104870.0,0.492956]
[1737148908334,0.0604159,104880.0,104870.0,0.492956]
[1737148908529,0.04908285,104880.0,104870.0,0.58033559]
[1737148908832,0.13646244,104880.0,104870.0,0.3608]
[1737148910433,0.30634203,104880.0,104870.0,0.3608]
[1737148910736,0.047656,104870.0,104860.0,0.12746]
[1737148911036,0.21423559,104870.0,104860.0,0.0798]
[1737148912435,0.126856,104870.0,104860.0,0.127461]
[1737148912830,0.126856,104870.0,104850.0,0.3608]
[1737148912831,0.16657959,104870.0,104850.0,0.3608]
[1737148913032,0.047661,104860.0,104850.0,0.408464]
[1737148913235,0.13504059,104860.0,104850.0,0.408464]
[1737148914828,0.3608,104870.0,104850.0,0.44817959]
[1737148915028,0.13503759,104870.0,104860.0,0.408461]
[1737148915224,0.047658,104870.0,104860.0,0.490461]
[1737148915945,0.047661,104860.0,104850.0,0.3608]
[1737148916141,0.047661,104860.0,104850.0,0.44817959]
[1737148916331,0.047661,104860.0,104850.0,0.49584459]
[1737148919540,0.047661,104860.0,104850.0,0.58322418]
[1737148920440,0.06038389,104880.0,104850.0,0.53555918]
[1737148920745,0.047658,104870.0,104860.0,0.37114059]
[1737148921042,0.047658,104870.0,104860.0,0.73194059]
[1737148925645,0.047658,104870.0,104860.0,0.5969]
[1737148927345,0.047658,104870.0,104860.0,0.644561]
[1737148930344,0.047658,104870.0,104860.0,0.73194059]
[1737148931239,0.06038489,104880.0,104870.0,0.047656]
[1737148931450,0.06038489,104880.0,104870.0,0.49583559]
[1737148931938,0.39032259,104900.0,104870.0,0.49583559]
[1737148931939,0.147645,104900.0,104870.0,0.63087118]
[1737148932239,0.23502459,104900.0,104890.0,0.408447]
[1737148932443,0.24640579,104900.0,104890.0,0.3608]
[1737148932949,0.047647,104890.0,104880.0,0.56315]
[1737148933142,0.047647,104890.0,104880.0,0.65052959]
[1737148938348,0.047647,104890.0,104880.0,0.96224103]
[1737148940242,0.047647,104890.0,104880.0,1.41860785]
[1737148940544,0.047647,104890.0,104880.0,1.42982068]
[1737148941152,0.047647,104890.0,104880.0,1.11810924]
[1737148941951,0.1590262,104900.0,104890.0,0.047647]
[1737148942248,0.1590262,104900.0,104890.0,0.49582659]
[1737148947540,0.1590262,104900.0,104890.0,0.80753803]
[1737148949748,0.1113812,104900.0,104890.0,0.49582659]
[1737148950055,0.18973322,104910.0,104900.0,0.047642]
[1737148950255,0.047638,104910.0,104900.0,0.64692159]
[1737148951954,0.05882489,104910.0,104900.0,0.28612159]
[1737148952154,0.05882489,104910.0,104900.0,0.64692159]
[1737148952855,0.05882489,104910.0,104900.0,0.559542]
[1737148954545,0.05882489,104910.0,104900.0,0.408442]
[1737148954761,0.05882489,104910.0,104900.0,0.49582159]
[1737148957247,0.05882489,104910.0,104900.0,0.57442159]
[1737148957949,0.05882489,104910.0,104900.0,1.34249985]
[1737148959659,0.01118689,104910.0,104900.0,1.34249985]
[1737148959959,0.067633,104920.0,104910.0,0.047638]
[1737148960256,0.07844914,104920.0,104910.0,0.65351759]
[1737148960452,0.21640359,104940.0,104910.0,0.65351759]
[1737148960453,0.047625,104940.0,104930.0,0.047626]
[1737148960646,0.047625,104940.0,104930.0,0.3608]
[1737148960647,0.13500459,104940.0,104930.0,0.3608]
[1737148960948,0.13500459,104940.0,104930.0,0.02]
[1737148962267,0.13500459,104940.0,104930.0,0.428429]
[1737148962448,0.13500459,104940.0,104930.0,0.067629]
[1737148963054,0.05797688,104940.0,104930.0,0.15500859]
[1737148963361,0.05797688,104940.0,104930.0,0.428429]
[1737148963855,0.05797688,104940.0,104930.0,0.51580859]
[1737148965758,0.05797688,104940.0,104930.0,0.428429]
[1737148966456,0.01035188,104940.0,104930.0,0.51580859]
[1737148966660,0.126322,104950.0,104940.0,0.047624]
[1737148966857,0.21370159,104950.0,104940.0,0.067624]
[1737148968362,0.126322,104950.0,104940.0,0.067624]
[1737148969464,0.126322,104950.0,104940.0,0.02]
[1737148969660,0.13701508,104950.0,104940.0,0.02]
[1737148970063,0.13701508,104950.0,104940.0,0.428424]
[1737148974374,0.13701508,104950.0,104940.0,0.51580359]
[1737148975365,0.05831508,104950.0,104940.0,0.51580359]
[1737148975669,0.01069308,104950.0,104940.0,0.60318318]
[1737148975875,0.205615,104960.0,104950.0,0.04762]
[1737148976072,0.205615,104960.0,104950.0,0.49579959]
[1737148977271,0.21602889,104960.0,104950.0,0.49579959]
[1737148977580,0.30340848,104960.0,104950.0,0.04762]
[1737148978171,0.21602889,104960.0,104950.0,0.04762]
[1737148978581,0.21602889,104960.0,104940.0,0.46817959]
[1737148978774,0.04762,104950.0,104940.0,0.51580059]
[1737148979774,0.04762,104950.0,104940.0,0.46817959]
[1737148981186,0.13499959,104950.0,104940.0,0.02]
[1737148981389,0.21139959,104950.0,104940.0,0.02]
[1737148981582,0.12402,104950.0,104940.0,0.02]
[1737148983087,0.12402,104950.0,104940.0,0.10737959]
[1737148983287,0.12402,104950.0,104940.0,0.02]
[1737148988490,0.21139959,104950.0,104940.0,0.02]
[1737148988689,0.57219959,104950.0,104940.0,0.02]
[1737148989391,0.047624,104940.0,104930.0,0.31171144]
[1737148989587,0.73858318,104940.0,104930.0,0.31171144]
[1737148991800,0.78620718,104940.0,104920.0,1.12883331]
[1737148992001,0.13500859,104930.0,104920.0,1.12883331]
[1737148994802,0.13500859,104930.0,104920.0,0.36086753]
[1737148995397,0.13500859,104930.0,104920.0,6.753e-05]
[1737148996104,0.49580859,104930.0,104920.0,6.753e-05]
[1737148998394,0.57590859,104930.0,104920.0,6.753e-05]
[1737149001006,0.047633,104920.0,104910.0,0.5945]
[1737149001207,0.13501259,104920.0,104910.0,0.5945]
[1737149002009,0.13507988,104920.0,104910.0,0.5139]
[1737149003515,0.13507988,104920.0,104910.0,0.4339]
[1737149003909,0.13507988,104920.0,104910.0,0.3608]
[1737149004297,0.13507988,104920.0,104900.0,0.89175434]
[1737149004298,0.047638,104910.0,104900.0,0.45625434]
[1737149004508,0.82009718,104910.0,104900.0,0.45625434]
[1737149005206,0.82016471,104910.0,104900.0,0.45625434]
[1737149006010,0.82016471,104910.0,104890.0,0.82512412]
[1737149006011,0.047647,104890.0,104880.0,0.3608971]
[1737149006313,0.13502659,104890.0,104880.0,0.3608971]
[1737149007002,0.13502659,104890.0,104880.0,0.75924241]
[1737149007711,0.047647,104890.0,104880.0,0.894274]
[1737149011122,0.05830383,104890.0,104880.0,0.894274]
[1737149011718,0.05830383,104890.0,104880.0,0.49592869]
[1737149019414,0.05830383,104890.0,104880.0,0.58330828]
[1737149026728,0.05830383,104890.0,104880.0,0.90732776]
[1737149028628,6.753e-05,104910.0,104900.0,0.047642]
[1737149028828,6.753e-05,104910.0,104900.0,0.58320118]
[1737149029522,6.753e-05,104910.0,104900.0,0.49582159]
[1737149029728,0.04770553,104910.0,104900.0,0.49582159]
[1737149029926,0.04770553,104910.0,104900.0,0.80753303]
[1737149037339,6.753e-05,104910.0,104900.0,1.16833303]
[1737149037843,6.753e-05,104910.0,104900.0,1.62437973]
[1737149038247,0.14205212,104920.0,104910.0,0.047638]
[1737149038449,0.14205212,104920.0,104910.0,0.81209718]
[1737149039747,0.14205212,104920.0,104910.0,1.12380862]
[1737149039943,0.04763,104930.0,104920.0,0.047633]
[1737149040145,0.04763,104930.0,104920.0,0.49581259]
[1737149040740,0.0599484,104930.0,104920.0,0.49581259]
[1737149045453,0.0599484,104930.0,104920.0,0.52281138]
[1737149046152,0.0599484,104930.0,104920.0,0.46562219]
[1737149048150,0.11713759,104930.0,104920.0,0.3608]
[1737149048453,0.11713759,104930.0,104910.0,1.12983814]
[1737149048454,0.047633,104920.0,104910.0,1.12983814]
[1737149048646,0.39891138,104920.0,104910.0,0.8168467]
[1737149050353,0.39891138,104920.0,104910.0,0.3608]
[1737149051458,0.37172361,104920.0,104910.0,0.3608]
[1737149055256,0.37172361,104920.0,104910.0,0.67251144]
[1737149056252,0.37172361,104920.0,104910.0,0.72014944]
[1737149056452,0.4683784,104930.0,104910.0,0.85497805]
[1737149056453,0.0599484,104930.0,104910.0,0.85497805]
[1737149056648,0.0599484,104930.0,104920.0,0.49562361]
[1737149056845,0.14713901,104930.0,104920.0,0.408433]
[1737149058054,0.14713901,104930.0,104920.0,0.047633]
[1737149058856,0.55557101,104930.0,104910.0,0.87604944]
[1737149059051,0.55557101,104930.0,104910.0,0.483138]
[1737149059052,0.13482361,104920.0,104910.0,0.483138]
[1737149060063,0.13482361,104920.0,104910.0,0.79215191]
[1737149060064,0.047633,104920.0,104910.0,0.79215191]
[1737149061957,0.047633,104920.0,104910.0,1.24819861]
[1737149064459,0.13482361,104920.0,104910.0,1.24819861]
[1737149064965,0.047633,104920.0,104910.0,1.24819861]
[1737149065164,0.13482361,104920.0,104910.0,1.63927329]
[1737149065555,0.29302361,104920.0,104910.0,1.27847329]
[1737149065761,0.81731422,104920.0,104910.0,1.27847329]
[1737149065952,0.73012361,104920.0,104910.0,1.27847329]
[1737149066157,0.73012361,104920.0,104910.0,0.30901391]
[1737149068368,0.73012361,104920.0,104900.0,0.71745591]
[1737149068561,0.13482861,104910.0,104900.0,0.35665591]
[1737149069162,0.13482861,104910.0,104900.0,0.047642]
[1737149069367,0.13482861,104910.0,104900.0,0.408442]
[1737149069956,0.13482861,104910.0,104900.0,0.047642]
[1737149071368,0.13482861,104910.0,104900.0,0.44689116]
[1737149071666,0.047636,104920.0,104910.0,0.047635]
[1737149071868,0.047636,104920.0,104910.0,0.57512561]
[1737149072066,0.5721894,104930.0,104920.0,0.047633]
[1737149072270,0.5721894,104930.0,104920.0,0.49562361]
[1737149072872,0.5721894,104930.0,104920.0,0.408433]
[1737149075862,0.5721894,104930.0,104920.0,0.71744691]
[1737149076661,0.65938001,104930.0,104920.0,0.66981391]
[1737149077066,0.81448001,104930.0,104920.0,0.66981391]
[1737149077265,0.81448001,104930.0,104920.0,1.12586061]
[1737149078068,0.81448001,104930.0,104920.0,0.70821225]
[1737149078864,1.17528001,104930.0,104920.0,0.70821225]
[1737149080265,0.047633,104920.0,104910.0,0.85751225]
[1737149080465,0.13482361,104920.0,104910.0,0.85751225]
[1737149084976,0.047633,104920.0,104910.0,0.85751225]
[1737149085274,0.13482361,104920.0,104910.0,0.85751225]
[1737149085977,0.13482361,104920.0,104910.0,1.31355895]
[1737149086577,0.49562361,104920.0,104910.0,1.31355895]
[1737149087679,0.49562361,104920.0,104910.0,1.16425895]
[1737149088870,0.49562361,104920.0,104910.0,0.70821225]
[1737149099280,0.13482361,104920.0,104910.0,0.70821225]
[1737149099485,0.49562361,104920.0,104910.0,0.70821225]
[1737149100586,0.13482361,104920.0,104910.0,0.70821225]
[1737149101085,0.047633,104920.0,104910.0,1.20384086]
[1737149101389,0.047633,104920.0,104910.0,1.44264086]
[1737149101594,0.5721894,104930.0,104920.0,0.047633]
[1737149101889,0.14714001,104930.0,104920.0,0.408433]
[1737149102084,0.0599494,104930.0,104920.0,0.408433]
[1737149102283,0.0599494,104930.0,104920.0,0.71744691]
[1737149104582,0.0599494,104930.0,104920.0,1.17349361]
[1737149105480,0.04905738,104940.0,104930.0,0.047629]
[1737149105688,0.04905738,104940.0,104930.0,0.73671961]
[1737149105989,0.06026421,104940.0,104930.0,0.73671961]
[1737149106590,0.06026421,104940.0,104930.0,1.04573352]
[1737149108092,0.01263721,104940.0,104930.0,1.04573352]
[1737149108281,0.047624,104940.0,104930.0,1.09336252]
[1737149109993,0.047624,104940.0,104930.0,0.95854291]
[1737149110186,0.047624,104940.0,104930.0,1.04573352]
[1737149111786,0.047624,104940.0,104930.0,1.19276631]
[1737149113192,0.047624,104940.0,104930.0,1.1055757]
[1737149113393,0.047624,104940.0,104930.0,1.19276631]
[1737149115001,0.047624,104940.0,104930.0,1.59081343]
[1737149116396,0.047624,104940.0,104930.0,1.13476673]
[1737149116796,0.047617,104960.0,104940.0,0.047624]
[1737149117101,0.047617,104960.0,104950.0,0.60599061]
[1737149117797,0.047617,104960.0,104950.0,0.68389061]
[1737149118603,0.047617,104960.0,104950.0,0.73151061]
[1737149119299,0.0587636,104960.0,104950.0,0.73151061]
[1737149119815,0.0587636,104960.0,104950.0,1.09231061]
[1737149120205,0.56132275,104970.0,104950.0,1.09231061]
[1737149120504,0.56132275,104970.0,104960.0,0.408415]
[1737149120800,0.56132275,104970.0,104960.0,0.13480561]
[1737149120994,0.56132275,104970.0,104960.0,0.047615]
[1737149122302,0.047615,104960.0,104950.0,0.644318]
[1737149127809,0.13480561,104960.0,104950.0,0.5188]
[1737149128006,0.13480561,104960.0,104950.0,0.4378]
[1737149128204,0.13480561,104960.0,104950.0,0.3608]
[1737149128509,0.18242461,104960.0,104940.0,1.02976131]
[1737149128705,0.13480561,104960.0,104940.0,1.8521879]
[1737149129004,0.04762,104950.0,104940.0,1.76499729]
[1737149130503,0.13481061,104950.0,104940.0,1.68689729]
[1737149130703,0.13481061,104950.0,104940.0,0.408424]
[1737149130907,0.37391061,104950.0,104940.0,0.3608]
[1737149131206,0.047624,104940.0,104930.0,1.71491329]
[1737149131403,0.13481461,104940.0,104930.0,1.36060694]
[1737149131603,0.13481461,104940.0,104930.0,1.28620694]
[1737149132810,0.13481461,104940.0,104930.0,1.7026392]
[1737149135509,0.047624,104940.0,104930.0,1.83745881]
[1737149141114,0.047624,104940.0,104930.0,2.35007544]
[1737149142115,0.047624,104940.0,104930.0,1.89441621]
[1737149142320,0.047624,104940.0,104930.0,1.8072256]
[1737149142508,0.047624,104940.0,104930.0,1.89441621]
[1737149143317,0.047624,104940.0,104930.0,1.67890609]
[1737149144617,0.047624,104940.0,104930.0,1.69270647]
[1737149146516,0.047624,104940.0,104930.0,1.18008984]
[1737149149120,0.047624,104940.0,104930.0,1.57896628]
[1737149151008,0.047624,104940.0,104930.0,0.80730544]
[1737149151620,0.047624,104940.0,104930.0,0.89449605]
[1737149152419,0.51370975,104970.0,104950.0,0.04762]
[1737149152723,0.51370975,104970.0,104960.0,0.49560561]
[1737149152724,0.01245262,104970.0,104960.0,0.49560561]
[1737149152910,0.047608,104980.0,104970.0,0.047611]
[1737149153112,0.047608,104980.0,104970.0,0.28500161]
[1737149153418,0.047608,104980.0,104970.0,0.64580161]
[1737149153618,0.3608,104990.0,104970.0,0.64580161]
[1737149153923,0.41889013,104990.0,104980.0,0.13479661]
[1737149154117,0.41889013,104990.0,104980.0,0.047606]
[1737149154625,0.05809013,104990.0,104980.0,0.49559661]
[1737149154924,0.05809013,104990.0,104980.0,1.09590563]
[1737149155124,0.05809013,104990.0,104980.0,1.17620563]
[1737149156023,0.05809013,104990.0,104980.0,0.86048419]
[1737149156827,0.01048613,104990.0,104980.0,0.86048419]
[1737149157123,0.1,105000.0,104980.0,0.86048419]
[1737149157332,0.1,105000.0,104990.0,0.49559261]
[1737149158820,0.1,105000.0,104990.0,0.78018019]
[1737149160028,0.1,105000.0,104990.0,1.17728566]
[1737149162830,0.1,105000.0,104990.0,1.18810443]
[1737149163836,0.147597,105000.0,104990.0,0.90351685]
[1737149164136,0.147597,105000.0,104990.0,0.53189808]
[1737149164337,0.147597,105000.0,104990.0,0.89269808]
[1737149165336,0.147597,105000.0,104990.0,0.83530388]
[1737149166732,0.1,105000.0,104990.0,0.83530388]
[1737149169732,0.1,105000.0,104990.0,0.92249449]
[1737149170036,0.1,105000.0,104990.0,0.83530388]
[1737149171243,0.1,105000.0,104990.0,0.92249449]
[1737149172034,0.01072446,105020.0,104990.0,0.92249449]
[1737149172240,0.047584,105030.0,105020.0,0.047585]
[1737149172443,0.047584,105030.0,105020.0,0.13477561]
[1737149172836,0.22898,105040.0,105030.0,0.047583]
[1737149173036,0.22898,105040.0,105030.0,0.13477361]
[1737149173738,0.23986504,105040.0,105030.0,0.047583]
[1737149173937,0.60066504,105040.0,105030.0,0.13477361]
[1737149175339,0.23986504,105040.0,105030.0,0.13477361]
[1737149175536,0.23986504,105040.0,105030.0,0.047583]
[1737149176040,0.047586,105030.0,105020.0,0.047588]
[1737149176252,0.047586,105030.0,105020.0,0.13477861]
[1737149178442,0.047586,105030.0,105010.0,0.74783587]
[1737149178641,0.047588,105020.0,105010.0,0.83502648]
[1737149179042,0.047588,105020.0,105010.0,0.49558061]
[1737149179443,0.047588,105020.0,105010.0,0.13478061]
[1737149180341,0.047588,105020.0,105010.0,0.04759]
[1737149180540,0.047593,105010.0,105000.0,0.99644168]
[1737149180850,0.047593,105010.0,105000.0,0.98573148]
[1737149181148,0.047593,105010.0,105000.0,1.04339108]
[1737149181940,0.047593,105010.0,105000.0,0.96989108]
[1737149182141,0.047593,105010.0,105000.0,0.57278561]
[1737149183144,0.047593,105010.0,105000.0,0.41551062]
[1737149183445,0.125393,105010.0,105000.0,0.32832001]
[1737149183646,0.198893,105010.0,105000.0,0.32832001]
[1737149184150,0.198893,105010.0,105000.0,0.41551062]
[1737149184547,0.198893,105010.0,105000.0,0.28072501]
[1737149184548,0.28608361,105010.0,105000.0,0.28072501]
[1737149184752,0.64688361,105010.0,105000.0,0.28072501]
[1737149185448,0.65772693,105010.0,105000.0,0.28072501]
[1737149185843,0.65772693,105010.0,105000.0,0.34152153]
[1737149192870,0.65772693,105010.0,105000.0,0.62224654]
[1737149193770,0.65772693,105010.0,105000.0,0.34152153]
[1737149194767,0.65772693,105010.0,105000.0,0.62224654]
[1737149198264,0.65772693,105010.0,105000.0,0.62198216]
[1737149202675,0.29692693,105010.0,105000.0,0.62198216]
[1737149203381,0.65772693,105010.0,105000.0,0.62198216]
[1737149204570,0.65772693,105010.0,105000.0,0.28072501]
[1737149207771,0.41923632,105010.0,105000.0,0.36791562]
[1737149207972,0.05843632,105010.0,105000.0,0.77631262]
[1737149208174,0.05843632,105010.0,105000.0,0.42662501]
[1737149208175,0.14562693,105010.0,105000.0,0.42662501]
[1737149208474,0.50642693,105010.0,105000.0,0.42662501]
[1737149209073,0.50642693,105010.0,105000.0,0.74234645]
[1737149209074,0.14562693,105010.0,105000.0,0.74234645]
[1737149209276,0.50642693,105010.0,105000.0,0.74234645]
[1737149209477,0.41923632,105010.0,105000.0,0.74234645]
[1737149209980,0.41923632,105010.0,105000.0,0.42662501]
[1737149210374,0.50642693,105010.0,105000.0,0.35152501]
[1737149210774,0.57992693,105010.0,105000.0,0.35152501]
[1737149210981,0.57992693,105010.0,105000.0,0.66724645]
[1737149211882,0.50642693,105010.0,105000.0,0.66724645]
[1737149212187,0.50642693,105010.0,105000.0,0.99355192]
[1737149212671,0.65272693,105010.0,105000.0,0.99355192]
[1737149213383,0.65272693,105010.0,105000.0,1.05238585]
[1737149213689,0.65272693,105010.0,105000.0,0.86936072]
[1737149214281,0.65272693,105010.0,105000.0,0.41342132]
[1737149215189,0.65272693,105010.0,105000.0,0.7153137]
[1737149215378,0.65272693,105010.0,104980.0,0.5869]
[1737149215689,0.047602,104990.0,104980.0,1.51311488]
[1737149215894,0.047602,104990.0,104980.0,1.56072088]
[1737149218386,0.047602,104990.0,104980.0,1.93110499]
[1737149219787,0.047602,104990.0,104980.0,2.50156352]
[1737149220491,0.047599,105000.0,104990.0,0.047599]
[1737149220785,0.047599,105000.0,104990.0,0.49558961]
[1737149221081,0.05843632,105010.0,104990.0,0.49558961]
[1737149221288,0.05843632,105010.0,105000.0,0.16169061]
[1737149221478,0.05843632,105010.0,105000.0,0.23949061]
[1737149222688,0.05843632,105010.0,105000.0,1.02133518]
[1737149224585,0.05843632,105010.0,105000.0,1.00534457]
[1737149226989,0.05843632,105010.0,105000.0,1.69369088]
[1737149229492,0.05843632,105010.0,105000.0,1.368424]
[1737149229889,0.14562693,105010.0,105000.0,1.368424]
[1737149230084,0.14562693,105010.0,105000.0,1.144924]
[1737149230285,0.50642693,105010.0,105000.0,1.144924]
[1737149230487,0.50642693,105010.0,105000.0,1.47019088]
[1737149231991,0.50642693,105010.0,105000.0,1.07083494]
[1737149232991,0.50642693,105010.0,105000.0,0.28899037]
[1737149233591,0.05843632,105010.0,105000.0,0.73698098]
[1737149233787,0.047593,105010.0,105000.0,0.92057798]
[1737149234292,0.047593,105010.0,105000.0,1.24584486]
[1737149238897,0.047593,105010.0,105000.0,1.25612762]
[1737149239092,0.047593,105010.0,105000.0,1.71270531]
[1737149244895,0.047593,105010.0,105000.0,1.76988501]
[1737149247701,0.047585,105030.0,105020.0,0.047584]
[1737149247904,0.05799941,105030.0,105020.0,0.49557461]
[1737149248101,0.60366883,105040.0,105020.0,0.49557461]
[1737149248306,0.59084983,105040.0,105030.0,0.08719061]
[1737149248500,0.59084983,105040.0,105030.0,0.19817361]
[1737149249307,0.59084983,105040.0,105030.0,1.21121344]
[1737149251515,0.59084983,105040.0,105030.0,0.79875595]
[1737149251906,0.60113521,105040.0,105030.0,0.79875595]
[1737149252520,0.60113521,105040.0,105030.0,1.24674656]
[1737149253136,0.60113521,105040.0,105030.0,0.73535595]
[1737149253326,0.68832582,105040.0,105030.0,0.73535595]
[1737149253619,0.60113521,105040.0,105030.0,0.73535595]
[1737149253918,0.60113521,105040.0,105030.0,0.82254656]
[1737149254118,0.60113521,105040.0,105030.0,0.42376398]
[1737149254315,0.60113521,105040.0,105030.0,0.33657337]
[1737149256629,0.60113521,105040.0,105030.0,1.06062283]
[1737149257320,0.60113521,105040.0,105030.0,0.44636558]
[1737149258215,0.60113521,105040.0,105030.0,0.73760215]
[1737149258716,0.68832582,105040.0,105030.0,0.69001915]
[1737149259017,1.23792582,105040.0,105030.0,0.69001915]
[1737149259224,1.23792582,105040.0,105030.0,0.39878258]
[1737149259527,0.047583,105030.0,105020.0,0.39878258]
[1737149259723,0.13477361,105030.0,105020.0,0.39878258]
[1737149259932,0.49557361,105030.0,105020.0,0.39878258]
[1737149260815,0.49557361,105030.0,105020.0,0.29412801]
[1737149261624,0.58276422,105030.0,105020.0,0.34141388]
[1737149262215,0.49557361,105030.0,105020.0,0.34141388]
[1737149262616,0.49557361,105030.0,105020.0,0.29412801]
[1737149263026,0.58276422,105030.0,105020.0,0.29412801]
[1737149264427,0.49557361,105030.0,105020.0,0.29412801]
[1737149266525,0.58276422,105030.0,105020.0,0.29412801]
[1737149269419,0.49557361,105030.0,105020.0,0.29412801]
[1737149280330,0.58276422,105030.0,105020.0,0.29412801]
[1737149281926,0.49557361,105030.0,105020.0,0.29412801]
[1737149289542,0.49557361,105030.0,105020.0,1.03240832]
[1737149290637,0.58276422,105030.0,105020.0,0.63214738]
[1737149290848,0.58276422,105030.0,105020.0,0.55922748]
[1737149291034,0.58276422,105030.0,105020.0,0.45418848]
[1737149291230,0.58276422,105030.0,105010.0,0.37679757]
[1737149291445,0.67837861,105020.0,105010.0,9.1e-07]
[1737149291736,0.67837861,105020.0,105000.0,9.1e-07]
[1737149291737,0.047593,105010.0,105000.0,9.1e-07]
[1737149291933,0.49558361,105010.0,105000.0,9.1e-07]
[1737149293040,0.49558361,105010.0,104990.0,0.0627]
[1737149293041,0.047597,105000.0,104990.0,0.0627]
[1737149293231,0.58277822,105000.0,104990.0,0.0627]
[1737149293437,0.047606,104980.0,104970.0,0.4235]
[1737149293637,0.13479661,104980.0,104970.0,0.5416]
[1737149293842,0.13479661,104980.0,104970.0,0.589211]
[1737149298054,0.047606,104980.0,104970.0,0.589211]
[1737149298746,0.13479661,104980.0,104970.0,0.5416]
[1737149301343,0.14488649,104980.0,104970.0,0.5416]
[1737149303543,0.05769588,104980.0,104970.0,0.5416]
[1737149304654,0.05769588,104980.0,104970.0,0.589211]
[1737149306355,0.05769588,104980.0,104970.0,0.67640161]
[1737149306872,0.047603,104990.0,104980.0,0.047606]
[1737149307090,0.047603,104990.0,104980.0,0.49559661]
[1737149307270,0.00142917,105010.0,104980.0,0.54319861]
[1737149307482,0.04902217,105010.0,105000.0,0.49558761]
[1737149308066,0.04902217,105010.0,105000.0,0.67908761]
[1737149309772,0.00142917,105010.0,105000.0,0.67908761]
[1737149311458,0.047585,105030.0,105020.0,0.047588]
[1737149311653,0.047585,105030.0,105020.0,0.49557861]
[1737149312556,0.047585,105030.0,105020.0,0.408388]
[1737149312757,0.047585,105030.0,105020.0,0.49557861]
[1737149314149,0.047585,105030.0,105020.0,0.408388]
[1737149315259,0.13477561,105030.0,105020.0,0.408388]
[1737149316362,0.13477561,105030.0,105020.0,0.047588]
[1737149320367,0.047588,105020.0,105010.0,0.047591]
[1737149320664,0.13477861,105020.0,105010.0,0.047591]
[1737149323369,0.047588,105020.0,105010.0,0.047591]
[1737149326665,0.05735392,105020.0,105010.0,0.047591]
[1737149336478,0.047593,105010.0,105000.0,0.591894]
[1737149336774,0.047593,105010.0,105000.0,0.67908461]
[1737149338371,0.047593,105010.0,105000.0,0.591894]
[1737149338675,0.047593,105010.0,105000.0,0.67908461]
[1737149338869,0.13478361,105010.0,105000.0,0.471194]
[1737149339273,0.19358361,105010.0,105000.0,0.408394]
[1737149339474,0.19358361,105010.0,105000.0,0.3608]
[1737149339874,0.25238361,105010.0,105000.0,0.3608]
[1737149340270,0.31408361,105010.0,105000.0,0.3608]
[1737149341475,0.67488361,105010.0,104990.0,0.047599]
[1737149341678,0.047597,105000.0,104990.0,0.408399]
[1737149344577,0.047597,105000.0,104990.0,0.49558961]
[1737149344771,0.047597,105000.0,104990.0,0.408399]
[1737149345482,0.10471765,105000.0,104990.0,0.46551965]
[1737149346679,0.10471765,105000.0,104990.0,0.408399]
[1737149346878,0.10471765,105000.0,104990.0,0.46551965]
[1737149349482,0.1618383,105000.0,104990.0,0.3608]
[1737149349988,0.10471765,105000.0,104990.0,0.3608]
[1737149350578,0.10471765,105000.0,104990.0,0.408402]
[1737149350779,0.17153235,105000.0,104990.0,0.408402]
[1737149351283,0.1144117,105000.0,104990.0,0.408402]
[1737149352080,0.1144117,105000.0,104990.0,0.46552265]
[1737149352391,0.1144117,105000.0,104990.0,0.408402]
[1737149352590,0.589453,105000.0,104980.0,0.5467]
[1737149352887,0.047606,104980.0,104970.0,0.3608]
[1737149353081,0.10472665,104980.0,104970.0,0.3608]
[1737149354588,0.11444235,104980.0,104970.0,0.3608]
[1737149354884,0.171563,104980.0,104970.0,0.3608]
[1737149355185,0.047611,104970.0,104960.0,0.63773365]
[1737149355386,0.047611,104970.0,104960.0,0.580613]
[1737149355582,0.047611,104970.0,104960.0,0.1722]
[1737149355787,0.13470508,104970.0,104960.0,0.533]
[1737149355975,0.13470508,104970.0,104960.0,0.4747]
[1737149356182,0.49550508,104970.0,104960.0,0.0549]
[1737149356380,0.55030508,104970.0,104960.0,0.0549]
[1737149356788,0.047615,104960.0,104950.0,0.40849788]
[1737149357081,0.047615,104960.0,104950.0,0.41797888]
[1737149357287,0.13470908,104960.0,104950.0,0.41797888]
[1737149357587,0.13470908,104960.0,104950.0,7.888e-05]
[1737149357777,0.49550908,104960.0,104950.0,7.888e-05]
[1737149360585,0.49550908,104960.0,104950.0,0.08717296]
[1737149360586,0.047615,104960.0,104950.0,0.08717296]
[1737149360788,0.047615,104960.0,104950.0,0.19419296]
[1737149361276,0.047615,104960.0,104950.0,0.10709888]
[1737149361491,0.047615,104960.0,104950.0,0.19419296]
[1737149362386,0.0574331,104960.0,104950.0,0.19419296]
[1737149363188,0.0574331,104960.0,104950.0,0.14657296]
[1737149363686,0.0574331,104960.0,104950.0,0.50737296]
[1737149363875,0.047615,104960.0,104950.0,0.55499296]
[1737149364381,0.047615,104960.0,104950.0,0.42027888]
[1737149364586,0.047615,104960.0,104950.0,0.50737296]
[1737149365879,0.047615,104960.0,104950.0,0.42027888]
[1737149366489,0.047615,104960.0,104950.0,0.50737296]
[1737149369407,0.047615,104960.0,104950.0,0.42027888]
[1737149374097,0.047615,104960.0,104950.0,0.46789888]
[1737149377391,0.047615,104960.0,104950.0,0.52505817]
[1737149383996,0.047615,104960.0,104950.0,0.53505947]
[1737149384198,0.047607,104980.0,104960.0,0.047615]
[1737149384399,0.047607,104980.0,104970.0,0.52027029]
[1737149385902,0.559443,104990.0,104980.0,0.047606]
[1737149386098,0.559443,104990.0,104980.0,0.16056529]
[1737149386999,0.61660229,104990.0,104980.0,0.16056529]
[1737149387404,0.559443,104990.0,104980.0,0.103406]
[1737149387806,0.56925034,104990.0,104980.0,0.103406]
[1737149389707,0.65630766,104990.0,104980.0,0.103406]
[1737149390120,0.65630766,104990.0,104980.0,0.047606]
[1737149390521,0.65630766,104990.0,104970.0,0.4155]
[1737149390718,0.65630766,104990.0,104970.0,0.463108]
[1737149390719,0.13466332,104980.0,104970.0,0.463108]
[1737149391522,0.047606,104980.0,104970.0,0.463108]
[1737149392320,0.047606,104980.0,104970.0,0.55016532]
[1737149393715,0.56925234,104990.0,104980.0,0.047606]
[1737149396124,0.65630966,104990.0,104980.0,0.047606]
[1737149396923,0.65630966,104990.0,104980.0,0.408406]
[1737149397217,0.14446966,104990.0,104980.0,0.047606]
[1737149397927,0.14446966,104990.0,104980.0,0.408406]
[1737149398115,0.14446966,104990.0,104980.0,0.047606]